fUSD/lending_fUSD_20251222
["ID","MTS","AMOUNT","RATE_DAILY","PERIOD"]
[399512501,1766421040638,-1476.0004268,0.00016438,2]
[399512502,1766421040648,-1476.0004268,0.00016438,2]
[399512503,1766421040658,-1476.0004268,0.00016438,2]
[399512504,1766421040668,-1476.0004268,0.00016438,2]
[399512505,1766421040684,-1476.0004268,0.00016438,2]
[399512506,1766421040694,-1476.0004268,0.00016438,2]
[399512507,1766421040704,-1476.0004268,0.00016438,2]
[399512508,1766421040713,-1476.0004268,0.00016438,2]
[399512509,1766421040722,-1476.0004268,0.00016438,2]
[399512510,1766421040732,-1476.0004268,0.00016438,2]
[399512511,1766421040742,-1476.0004268,0.00016438,2]
[399512512,1766421040754,-1476.0004268,0.00016438,2]
[399512513,1766421040763,-2624.00075874,0.00016438,2]
[399512514,1766421040773,-800.0,0.00016438,2]
[399512515,1766421040783,-164.47,0.0001644,2]
[399512516,1766421040792,-3257.683613,0.0001646,2]
[399512517,1766421040802,-2862.211935,0.00016463,2]
[399512518,1766421040811,-500.0,0.00016467,2]
[399512519,1766421040820,-303.35054938,0.00016473,2]
[399512520,1766421040830,-168.0,0.00016502,2]
[399512521,1766421040839,-200.8979183,0.00016529,2]
[399512522,1766421040848,-3257.683613,0.00016533,2]
[399512523,1766421040858,-2862.211935,0.00016536,2]
[399512524,1766421040867,-500.0,0.00016548,2]
[399512525,1766421040877,-150.0,0.00016562,2]
[399512526,1766421040886,-358.71934003,0.000166,2]
[399512527,1766421040897,-3257.683613,0.00016607,2]
[399512528,1766421040911,-2862.211935,0.00016608,2]
[399512529,1766421040920,-287.61899177,0.00016617,2]
[399512530,1766421040929,-200.8979183,0.00016622,2]
[399512531,1766421040939,-13397.19453084,0.0001666,2]
[399512532,1766421040951,-3257.683613,0.0001668,2]
[399512533,1766421040960,-2862.211935,0.00016681,2]
[399512534,1766421040969,-168.0,0.00016684,2]
[399512535,1766421040981,-150.0,0.00016703,2]
[399512536,1766421040991,-2253.1,0.00016712,2]
[399512537,1766421041000,-200.8979183,0.00016715,2]
[399512538,1766421041010,-3257.683613,0.00016753,2]
[399512539,1766421041019,-2862.211935,0.00016754,2]
[399512540,1766421041028,-168.0,0.00016802,2]
[399512541,1766421041038,-200.8979183,0.00016807,2]
[399512542,1766421041047,-168.0,0.00016816,2]
[399512543,1766421041056,-168.0,0.00016824,2]
[399512544,1766421041066,-2862.211935,0.00016827,2]
[399512545,1766421041075,-172.07257592,0.000169,2]
[399512546,1766421041086,-10000.0,0.000169,2]
[399512547,1766421041095,-1358.3835,0.000169,2]
[399512548,1766421041104,-1000.0,0.000169,2]
[399512549,1766421041113,-998.28649574,0.000169,2]
[399512550,1766421041123,-200.8979183,0.000169,2]
[399512551,1766421041132,-2862.211935,0.000169,2]
[399512552,1766421041142,-2534.8044367,0.000169,2]
[399512553,1766421041151,-12385.53754934,0.000169,2]
[399512554,1766421041160,-2351.0,0.00016939,2]
[399512555,1766421041169,-500.0,0.00016973,2]
[399512556,1766421041178,-500.0,0.00016973,2]
[399512557,1766421041188,-500.0,0.00016973,2]
[399512558,1766421041198,-500.0,0.00016973,2]
[399512559,1766421041207,-500.0,0.00016973,2]
[399512560,1766421041216,-500.0,0.00016973,2]
[399512561,1766421041225,-500.0,0.00016973,2]
[399512562,1766421041235,-500.0,0.00016973,2]
[399512563,1766421041244,-500.0,0.00016973,2]
[399512564,1766421041254,-500.0,0.00016973,2]
[399512565,1766421041264,-500.0,0.00016973,2]
[399512566,1766421041273,-192.33860374,0.00016973,2]
[399512567,1766421041283,-500.0,0.00016973,2]
[399512568,1766421041292,-500.0,0.00016973,2]
[399512569,1766421041302,-500.0,0.00016973,2]
[399512570,1766421041311,-500.0,0.00016973,2]
[399512571,1766421041320,-500.0,0.00016973,2]
[399512572,1766421041330,-500.0,0.00016973,2]
[399512573,1766421041339,-500.0,0.00016973,2]
[399512574,1766421041349,-500.0,0.00016973,2]
[399512575,1766421041358,-500.0,0.00016973,2]
[399512576,1766421041367,-607.27794766,0.00016973,2]
[399512577,1766421041376,-500.0,0.00016973,2]
[399512578,1766421041386,-500.0,0.00016973,2]
[399512579,1766421041395,-500.0,0.00016973,2]
[399512580,1766421041404,-500.0,0.00016973,2]
[399512581,1766421041414,-473.51090272,0.00016973,2]
[399512582,1766421041423,-187.58612974,0.00016973,2]
[399512583,1766421041433,-179.47316237,0.00016973,2]
[399512584,1766421041442,-517.55500559,0.00016973,2]
[399512585,1766421041453,-500.0,0.00016973,2]
[399512586,1766421041463,-577.70558009,0.00016973,2]
[399512587,1766421041472,-500.0,0.00016973,2]
[399512588,1766421041482,-500.0,0.00016973,2]
[399512589,1766421041491,-500.0,0.00016973,2]
[399512590,1766421041501,-500.0,0.00016973,2]
[399512591,1766421041511,-500.0,0.00016973,2]
[399512592,1766421041523,-500.0,0.00016973,2]
[399512593,1766421041533,-500.0,0.00016973,2]
[399512594,1766421041542,-500.0,0.00016973,2]
[399512595,1766421041551,-500.0,0.00016973,2]
[399512596,1766421041561,-500.0,0.00016973,2]
[399512597,1766421041571,-500.16141079,0.00016973,2]
[399512598,1766421041581,-500.0,0.00016973,2]
[399512599,1766421041591,-500.0,0.00016973,2]
[399512600,1766421041600,-500.0,0.00016973,2]
[399512601,1766421041609,-500.0,0.00016973,2]
[399512602,1766421041618,-500.0,0.00016973,2]
[399512603,1766421041628,-500.0,0.00016973,2]
[399512604,1766421041637,-516.53532775,0.00016973,2]
[399512605,1766421041646,-500.0,0.00016973,2]
[399512606,1766421041655,-500.0,0.00016973,2]
[399512607,1766421041665,-468.6988227,0.00016973,2]
[399512608,1766421041674,-344.75321982,0.00016973,2]
[399512609,1766421041683,-523.16788729,0.00016973,2]
[399512610,1766421041692,-500.0,0.00016973,2]
[399512611,1766421041701,-500.19873097,0.00016973,2]
[399512612,1766421041710,-500.45563157,0.00016973,2]
[399512613,1766421041719,-220.3394429,0.00016973,2]
[399512614,1766421041728,-500.0,0.00016973,2]
[399512615,1766421041737,-161.12986217,0.00016973,2]
[399512616,1766421041746,-168.0,0.00016977,2]
[399512617,1766421041756,-168.0,0.00016985,2]
[399512618,1766421041765,-2253.1,0.00016986,2]
[399512619,1766421041775,-156.00450993,0.00016986,2]
[399512620,1766421041784,-160.79668621,0.00016986,2]
[399512621,1766421041793,-150.0,0.00016986,2]
[399512622,1766421041802,-273.54560927,0.0001699,2]
[399512623,1766421041812,-273.54560927,0.0001699,2]
[399512624,1766421041821,-150.0,0.00016999,2]
[399512625,1766421041830,-666.0,0.00016999,2]
[399512626,1766421041840,-500.0,0.00016999,2]
[399512627,1766421041850,-500.0,0.00016999,2]
[399512628,1766421041859,-500.0,0.00016999,2]
[399512629,1766421041869,-376.9654415,0.00016999,2]
[399512630,1766421041879,-500.0,0.00016999,2]
[399512631,1766421041888,-500.0,0.00016999,2]
[399512632,1766421041897,-511.74808799,0.00016999,2]
[399512633,1766421041910,-300.0,0.00016999,2]
[399512634,1766421041919,-500.0,0.00016999,2]
[399512635,1766421041929,-500.0,0.00016999,2]
[399512636,1766421041938,-500.0,0.00016999,2]
[399512637,1766421041949,-500.0,0.00016999,2]
[399512638,1766421041959,-500.0,0.00016999,2]
[399512639,1766421041968,-500.0,0.00016999,2]
[399512640,1766421041979,-547.3467704,0.00016999,2]
[399512641,1766421041988,-299.84255879,0.00016999,2]
[399512642,1766421041998,-555.13,0.00016999,2]
[399512643,1766421042007,-555.13,0.00016999,2]
[399512644,1766421042016,-555.13,0.00016999,2]
[399512645,1766421042025,-555.13,0.00016999,2]
[399512646,1766421042034,-555.13,0.00016999,2]
[399512647,1766421042044,-555.13,0.00016999,2]
[399512648,1766421042053,-555.13,0.00016999,2]
[399512649,1766421042062,-555.13,0.00016999,2]
[399512650,1766421042072,-555.13,0.00016999,2]
[399512651,1766421042082,-555.13,0.00016999,2]
[399512652,1766421042091,-555.13,0.00016999,2]
[399512653,1766421042101,-555.13,0.00016999,2]
[399512654,1766421042110,-555.13,0.00016999,2]
[399512655,1766421042120,-555.13,0.00016999,2]
[399512656,1766421042130,-555.13,0.00016999,2]
[399512657,1766421042139,-555.13,0.00016999,2]
[399512658,1766421042148,-555.13,0.00016999,2]
[399512659,1766421042158,-555.13,0.00016999,2]
[399512660,1766421042167,-555.13,0.00016999,2]
[399512661,1766421042176,-555.13,0.00016999,2]
[399512662,1766421042186,-555.13,0.00016999,2]
[399512663,1766421042196,-555.13,0.00016999,2]
[399512664,1766421042205,-555.13,0.00016999,2]
[399512665,1766421042215,-555.27475033,0.00016999,2]
[399512666,1766421042224,-500.0,0.00016999,2]
[399512667,1766421042234,-500.0,0.00016999,2]
[399512668,1766421042243,-500.0,0.00016999,2]
[399512669,1766421042252,-500.0,0.00016999,2]
[399512670,1766421042262,-500.0,0.00016999,2]
[399512671,1766421042271,-500.0,0.00016999,2]
[399512672,1766421042280,-510.46904763,0.00016999,2]
[399512673,1766421042289,-500.0,0.00016999,2]
[399512674,1766421042299,-500.0,0.00016999,2]
[399512675,1766421042308,-500.0,0.00016999,2]
[399512676,1766421042317,-508.14814092,0.00016999,2]
[399512677,1766421042327,-500.0,0.00016999,2]
[399512678,1766421042336,-596.20415987,0.00016999,2]
[399512680,1766421042346,-300.0,0.00016999,2]
[399512681,1766421042355,-300.0,0.00016999,2]
[399512682,1766421042364,-300.0,0.00016999,2]
[399512683,1766421042375,-666.0,0.00016999,2]
[399512684,1766421042385,-799.31,0.00016999,2]
[399512685,1766421042395,-799.31,0.00016999,2]
[399512686,1766421042404,-799.31,0.00016999,2]
[399512687,1766421042413,-799.31,0.00016999,2]
[399512688,1766421042422,-799.31,0.00016999,2]
[399512689,1766421042431,-799.31,0.00016999,2]
[399512690,1766421042441,-799.31,0.00016999,2]
[399512691,1766421042451,-799.31,0.00016999,2]
[399512692,1766421042460,-799.31,0.00016999,2]
[399512693,1766421042470,-799.31,0.00016999,2]
[399512694,1766421042479,-799.31,0.00016999,2]
[399512695,1766421042489,-799.31,0.00016999,2]
[399512696,1766421042498,-799.31,0.00016999,2]
[399512697,1766421042508,-799.31,0.00016999,2]
[399512698,1766421042518,-799.31,0.00016999,2]
[399512699,1766421042527,-799.31,0.00016999,2]
[399512700,1766421042537,-799.31,0.00016999,2]
[399512701,1766421042546,-799.31,0.00016999,2]
[399512702,1766421042556,-799.31,0.00016999,2]
[399512703,1766421042566,-799.31,0.00016999,2]
[399512704,1766421042576,-799.31,0.00016999,2]
[399512705,1766421042585,-799.31,0.00016999,2]
[399512706,1766421042595,-799.31,0.00016999,2]
[399512707,1766421042604,-799.50753557,0.00016999,2]
[399512708,1766421042614,-500.0,0.00016999,2]
[399512709,1766421042623,-500.0,0.00016999,2]
[399512710,1766421042633,-500.0,0.00016999,2]
[399512711,1766421042642,-500.0,0.00016999,2]
[399512712,1766421042802,-500.0,0.00016999,2]
[399512713,1766421042812,-500.0,0.00016999,2]
[399512714,1766421042822,-500.0,0.00016999,2]
[399512715,1766421042831,-500.0,0.00016999,2]
[399512716,1766421042841,-1847590.10316991,0.00017,2]
[399512717,1766421042870,-164.47,0.0001644,2]
[399512718,1766421042879,-14423.06601149,0.00017,2]
[399512719,1766421042903,-164.47,0.0001644,2]
[399512720,1766421042916,-222.917,0.00017,2]
[399512721,1766421042928,-899.99975,0.00017,2]
[399512722,1766421042940,-76705.48713625,0.00017,2]
[399512723,1766421042954,-900.275,0.00017,2]
[399512724,1766421042966,-4314.1106964,0.00017,2]
[399512725,1766421043091,-163.2467619,0.0001624,2]
[399512726,1766421043102,-1224.59493337,0.00016351,2]
[399512728,1766421043115,-5305.40506663,0.00016351,2]
[399512730,1766421043126,-164.47,0.00016523,2]
[399512733,1766421043137,-3257.683613,0.00016827,2]
[399512735,1766421043147,-164.47,0.0001699,2]
[399512737,1766421043157,-164.47,0.0001699,2]
[399512739,1766421043168,-164.47,0.0001699,2]
[399512741,1766421043178,-17072.82678446,0.00017,2]
[399512760,1766421043466,-196205.09905489,0.00017,2]
[399512762,1766421043477,-12831.81646301,0.00017,2]
[399512764,1766421043489,-312.75681598,0.00017,2]
[399512767,1766421043507,-151.0,0.0001605,2]
[399512769,1766421043517,-2935.18771588,0.00017,2]
[399512770,1766421043528,-355.64776811,0.00017,2]
[399512771,1766421043539,-870.0,0.00017,2]
[399512772,1766421043550,-429.90030237,0.00017,2]
[399512773,1766421043562,-854.55749319,0.00017,2]
[399512774,1766421043573,-2053.0001,0.00017,2]
[399512775,1766421043585,-448.80928647,0.00017,2]
[399512777,1766421045678,-1668.03,0.00017,2]
[399512778,1766421045690,-28331.69760703,0.00017,2]
[399512779,1766421045702,-3875.51419,0.00017,2]
[399512871,1766422112356,271.61,0.00022,30]
[399512874,1766422231607,-11461.808975,0.00013219,2]
[399512875,1766422231616,-300.0,0.00013286,2]
[399512876,1766422231626,-1200.0,0.00013286,2]
[399512877,1766422231635,-300.0,0.00013354,2]
[399512878,1766422231644,-1000.0,0.00013699,2]
[399512879,1766422231654,-274.85,0.00013729,2]
[399512880,1766422231663,-353.54747645,0.00013737,2]
[399512881,1766422231672,-1593.63536732,0.00013744,2]
[399512882,1766422231683,-22966.78578114,0.00013744,2]
[399512883,1766422231695,-64527.62802984,0.00013744,2]
[399512884,1766422231766,-1051.5652764,0.00013744,2]
[399512885,1766422231778,-889.25305166,0.00013744,2]
[399512927,1766422237684,-340.00534089,0.00013744,2]
[399512928,1766422237696,-511.83810748,0.00013744,2]
[399512929,1766422237707,-12493.37199353,0.00013744,2]
[399512930,1766422237719,-442.92110589,0.00013744,2]
[399512931,1766422237738,-12746.0,0.00013744,2]
[399512932,1766422237749,-1586.66,0.00013744,2]
[399512933,1766422237794,-741.7,0.00013744,2]
[399512934,1766422237904,-907.14,0.00013744,2]
[399513111,1766422239902,-310.71335497,0.00013744,2]
[399513112,1766422239913,-878890.78259088,0.00013744,2]
[399513113,1766422239923,-200.0,0.00013837,2]
[399513114,1766422239933,-200.0,0.00013837,2]
[399513115,1766422239943,-500.0,0.00013837,2]
[399513116,1766422239952,-151.0,0.00013837,2]
[399513117,1766422239961,-151.0,0.00013837,2]
[399513118,1766422239970,-151.0,0.00013837,2]
[399513119,1766422239979,-151.0,0.00013837,2]
[399513120,1766422239988,-151.0,0.00013837,2]
[399513121,1766422239997,-151.0,0.00013837,2]
[399513122,1766422240006,-151.0,0.00013837,2]
[399513123,1766422240015,-151.0,0.00013837,2]
[399513124,1766422240025,-151.0,0.00013837,2]
[399513125,1766422240034,-151.0,0.00013837,2]
[399513126,1766422240044,-151.0,0.00013837,2]
[399513127,1766422240053,-200.0,0.00013837,2]
[399513128,1766422240062,-150.0,0.00013842,2]
[399513129,1766422240071,-500.19179488,0.00013844,2]
[399513130,1766422240080,-500.0,0.00013844,2]
[399513131,1766422240089,-500.0,0.00013844,2]
[399513132,1766422240099,-500.0,0.00013844,2]
[399513133,1766422240108,-500.0,0.00013844,2]
[399513134,1766422240116,-487.3938533,0.00013844,2]
[399513135,1766422240126,-500.0,0.00013844,2]
[399513136,1766422240135,-500.0,0.00013844,2]
[399513137,1766422240144,-500.0,0.00013844,2]
[399513138,1766422240154,-295.6947038,0.00013844,2]
[399513139,1766422240164,-78489.94,0.00013845,2]
[399513140,1766422240173,-1048.1,0.00013883,2]
[399513141,1766422240183,-1734.08,0.00013884,2]
[399513142,1766422240192,-1500.0,0.00013888,2]
[399513144,1766422240202,-208.29,0.00013963,2]
[399513146,1766422240211,-256.0,0.00014181,2]
[399513147,1766422240221,-500.0,0.000143,2]
[399513149,1766422240230,-500.0,0.000143,2]
[399513151,1766422240240,-500.0,0.000143,2]
[399513153,1766422240253,-168.65037374,0.000143,2]
[399513156,1766422240262,-500.0,0.000143,2]
[399513157,1766422240274,-500.0,0.000143,2]
[399513158,1766422240284,-500.0,0.000143,2]
[399513159,1766422240295,-500.0,0.000143,2]
[399513160,1766422240304,-237.0,0.00014335,2]
[399513161,1766422240314,-458.0,0.00014378,2]
[399513162,1766422240327,-200.0,0.00014385,2]
[399513163,1766422240336,-500.0,0.00014385,2]
[399513164,1766422240346,-200.0,0.00014385,2]
[399513165,1766422240356,-274.85,0.00014492,2]
[399513166,1766422240365,-378.0,0.00014537,2]
[399513167,1766422240375,-420.0,0.00014566,2]
[399513168,1766422240384,-1680.0,0.00014614,2]
[399513169,1766422240394,-2500.0,0.00014615,2]
[399513170,1766422240403,-2500.0,0.00014615,2]
[399513171,1766422240412,-300.0,0.00014615,2]
[399513172,1766422240421,-300.0,0.00014615,2]
[399513173,1766422240430,-300.0,0.00014615,2]
[399513174,1766422240440,-500.0,0.00014637,2]
[399513175,1766422240450,-300.0,0.00014689,2]
[399513176,1766422240459,-195.0,0.00014689,2]
[399513177,1766422240472,-600.0,0.00014689,2]
[399513178,1766422240481,-600.0,0.00014689,2]
[399513179,1766422240491,-600.0,0.00014689,2]
[399513180,1766422240500,-600.0,0.00014689,2]
[399513181,1766422240510,-2500.0,0.00014689,2]
[399513182,1766422240519,-2500.0,0.00014689,2]
[399513183,1766422240528,-2500.0,0.00014689,2]
[399513184,1766422240537,-300.0,0.00014689,2]
[399513185,1766422240547,-600.0,0.00014691,2]
[399513186,1766422240556,-1000.0,0.00014848,2]
[399513187,1766422240565,-1000.0,0.00014848,2]
[399513188,1766422240575,-1000.0,0.00014848,2]
[399513189,1766422240584,-202.68,0.00014891,2]
[399513190,1766422240593,-200.0,0.00014933,2]
[399513191,1766422240603,-500.0,0.00014933,2]
[399513192,1766422240612,-200.0,0.00014933,2]
[399513193,1766422240621,-255.0,0.00014963,2]
[399513194,1766422240630,-684.32665241,0.00015025,2]
[399513195,1766422240640,-322.6107,0.00015032,2]
[399513196,1766422240649,-303.35054938,0.00015032,2]
[399513197,1766422240661,-151.0,0.00015032,2]
[399513198,1766422240670,-250.0,0.00015032,2]
[399513199,1766422240680,-209.40437684,0.00015032,2]
[399513200,1766422240689,-250.0,0.00015032,2]
[399513201,1766422240698,-250.0,0.00015032,2]
[399513202,1766422240707,-250.0,0.00015032,2]
[399513203,1766422240717,-250.0,0.00015032,2]
[399513204,1766422240726,-250.0,0.00015032,2]
[399513205,1766422240736,-250.0,0.00015032,2]
[399513206,1766422240746,-250.0,0.00015032,2]
[399513207,1766422240755,-250.0,0.00015032,2]
[399513208,1766422240764,-250.0,0.00015032,2]
[399513209,1766422240774,-250.0,0.00015032,2]
[399513210,1766422240784,-500.0,0.00015032,2]
[399513211,1766422240794,-250.0,0.00015032,2]
[399513212,1766422240803,-250.0,0.00015032,2]
[399513213,1766422240813,-500.0,0.00015032,2]
[399513214,1766422240823,-250.0,0.00015032,2]
[399513215,1766422240833,-250.0,0.00015032,2]
[399513216,1766422240843,-500.0,0.00015032,2]
[399513217,1766422240854,-250.0,0.00015032,2]
[399513218,1766422240864,-250.0,0.00015032,2]
[399513219,1766422240873,-500.0,0.00015032,2]
[399513220,1766422240883,-250.0,0.00015032,2]
[399513221,1766422240893,-250.0,0.00015032,2]
[399513222,1766422240903,-500.0,0.00015032,2]
[399513223,1766422240912,-250.0,0.00015032,2]
[399513224,1766422240922,-500.0,0.00015032,2]
[399513225,1766422240933,-250.0,0.00015032,2]
[399513226,1766422240943,-500.0,0.00015032,2]
[399513227,1766422240953,-250.0,0.00015032,2]
[399513228,1766422240963,-500.0,0.00015032,2]
[399513229,1766422240973,-250.0,0.00015032,2]
[399513231,1766422240982,-500.0,0.00015032,2]
[399513232,1766422240992,-250.0,0.00015032,2]
[399513234,1766422241001,-500.0,0.00015032,2]
[399513237,1766422241011,-500.0,0.00015032,2]
[399513239,1766422241021,-250.0,0.00015032,2]
[399513241,1766422241031,-500.0,0.00015032,2]
[399513243,1766422241041,-500.0,0.00015032,2]
[399513245,1766422241050,-250.0,0.00015032,2]
[399513247,1766422241060,-500.0,0.00015032,2]
[399513249,1766422241070,-500.0,0.00015032,2]
[399513251,1766422241079,-250.0,0.00015032,2]
[399513253,1766422241089,-500.0,0.00015032,2]
[399513255,1766422241098,-500.0,0.00015032,2]
[399513257,1766422241107,-500.0,0.00015032,2]
[399513259,1766422241116,-574.12855637,0.00015032,2]
[399513260,1766422241125,-500.0,0.00015032,2]
[399513261,1766422241135,-500.0,0.00015032,2]
[399513262,1766422241145,-500.0,0.00015032,2]
[399513263,1766422241154,-500.0,0.00015032,2]
[399513264,1766422241167,-500.0,0.00015032,2]
[399513265,1766422241190,-500.0,0.00015032,2]
[399513266,1766422241199,-500.0,0.00015032,2]
[399513267,1766422241209,-215.32702677,0.00015032,2]
[399513268,1766422241218,-500.0,0.00015032,2]
[399513269,1766422241228,-250.0,0.00015032,2]
[399513270,1766422241238,-500.0,0.00015032,2]
[399513271,1766422241257,-250.0,0.00015032,2]
[399513272,1766422241276,-500.0,0.00015032,2]
[399513273,1766422241286,-250.0,0.00015032,2]
[399513274,1766422241298,-500.0,0.00015032,2]
[399513275,1766422241308,-250.0,0.00015032,2]
[399513276,1766422241318,-500.0,0.00015032,2]
[399513277,1766422241330,-500.0,0.00015032,2]
[399513278,1766422241341,-250.0,0.00015032,2]
[399513279,1766422241353,-500.0,0.00015032,2]
[399513280,1766422241363,-500.0,0.00015032,2]
[399513281,1766422241374,-250.0,0.00015032,2]
[399513282,1766422241384,-500.0,0.00015032,2]
[399513283,1766422241394,-500.0,0.00015032,2]
[399513284,1766422241404,-250.0,0.00015032,2]
[399513285,1766422241414,-500.0,0.00015032,2]
[399513286,1766422241424,-500.0,0.00015032,2]
[399513287,1766422241434,-250.0,0.00015032,2]
[399513288,1766422241444,-1451.69716232,0.00015032,2]
[399513289,1766422241454,-500.0,0.00015032,2]
[399513290,1766422241464,-250.0,0.00015032,2]
[399513291,1766422241474,-250.0,0.00015032,2]
[399513292,1766422241484,-500.0,0.00015032,2]
[399513293,1766422241494,-250.0,0.00015032,2]
[399513294,1766422241504,-200.0,0.00015032,2]
[399513295,1766422241514,-348.97018415,0.00015032,2]
[399513296,1766422241524,-500.0,0.00015032,2]
[399513297,1766422241533,-250.0,0.00015032,2]
[399513298,1766422241543,-207.4,0.00015032,2]
[399513299,1766422241553,-500.0,0.00015032,2]
[399513300,1766422241563,-215.0738,0.00015032,2]
[399513301,1766422241573,-500.0,0.00015032,2]
[399513302,1766422241583,-223.0315306,0.00015032,2]
[399513303,1766422241592,-500.0,0.00015032,2]
[399513304,1766422241603,-231.28369723,0.00015032,2]
[399513305,1766422241613,-500.0,0.00015032,2]
[399513306,1766422241623,-239.84119403,0.00015032,2]
[399513307,1766422241634,-248.71531821,0.00015032,2]
[399513308,1766422241645,-250.0,0.00015032,2]
[399513309,1766422241655,-336.28681043,0.00015032,2]
[399513310,1766422241665,-250.0,0.00015032,2]
[399513311,1766422241675,-250.0,0.00015032,2]
[399513312,1766422241684,-250.0,0.00015032,2]
[399513313,1766422241694,-250.0,0.00015032,2]
[399513314,1766422241704,-250.0,0.00015032,2]
[399513315,1766422241714,-213.14631305,0.00015032,2]
[399513316,1766422241724,-721.12765535,0.00015032,2]
[399513317,1766422241733,-620.0,0.00015032,2]
[399513318,1766422241743,-220.0,0.00015032,2]
[399513319,1766422241753,-220.65667203,0.00015032,2]
[399513320,1766422241763,-652.05,0.00015032,2]
[399513321,1766422241773,-353.54747645,0.00015038,2]
[399513322,1766422241782,-3589.61998902,0.00015043,2]
[399513323,1766422241792,-2217.3339,0.00015052,2]
[399513324,1766422241802,-1358.3835,0.00015052,2]
[399513325,1766422241815,-1000.0,0.00015052,2]
[399513326,1766422241825,-6478.93951545,0.00015093,2]
[399513327,1766422241835,-273.54560927,0.00015142,2]
[399513328,1766422241844,-500.0,0.00015152,2]
[399513329,1766422241855,-500.0,0.00015152,2]
[399513330,1766422241865,-500.0,0.00015152,2]
[399513331,1766422241874,-500.0,0.00015152,2]
[399513332,1766422241884,-500.0,0.00015152,2]
[399513333,1766422241894,-500.0,0.00015152,2]
[399513334,1766422241904,-500.0,0.00015152,2]
[399513335,1766422241914,-500.0,0.00015152,2]
[399513336,1766422241924,-638.82,0.00015152,2]
[399513337,1766422241934,-638.82,0.00015152,2]
[399513338,1766422241945,-638.82,0.00015152,2]
[399513339,1766422241955,-638.82,0.00015152,2]
[399513340,1766422241965,-150.0,0.00015152,2]
[399513341,1766422241976,-500.0,0.00015152,2]
[399513342,1766422241985,-500.0,0.00015152,2]
[399513343,1766422241996,-500.0,0.00015152,2]
[399513344,1766422242006,-500.0,0.00015152,2]
[399513345,1766422242016,-500.0,0.00015152,2]
[399513346,1766422242027,-525.99859536,0.00015152,2]
[399513347,1766422242037,-500.0,0.00015152,2]
[399513348,1766422242047,-500.0,0.00015152,2]
[399513349,1766422242057,-500.0,0.00015152,2]
[399513350,1766422242067,-500.0,0.00015152,2]
[399513351,1766422242077,-500.0,0.00015152,2]
[399513352,1766422242087,-500.0,0.00015152,2]
[399513353,1766422242097,-500.0,0.00015152,2]
[399513354,1766422242107,-572.01503076,0.00015152,2]
[399513355,1766422242116,-500.0,0.00015152,2]
[399513356,1766422242126,-500.0,0.00015152,2]
[399513357,1766422242136,-500.0,0.00015152,2]
[399513358,1766422242146,-500.0,0.00015152,2]
[399513359,1766422242156,-500.0,0.00015152,2]
[399513360,1766422242166,-500.0,0.00015152,2]
[399513361,1766422242176,-518.24028953,0.00015152,2]
[399513362,1766422242189,-862.86,0.00015152,2]
[399513363,1766422242199,-862.86,0.00015152,2]
[399513364,1766422242209,-862.86,0.00015152,2]
[399513365,1766422242218,-862.86,0.00015152,2]